fUST/lending_fUST_20240801
["ID","MTS","AMOUNT","RATE_DAILY","PERIOD"]
[333748515,1722441628627,1629.26928721,0.0001002,2]
[333748516,1722441639150,154.68290005,9.999e-05,2]
[333748517,1722441740155,154.68290005,9.999e-05,2]
[333748518,1722441868161,154.68290005,9.999e-05,2]
[333748519,1722441876167,154.68290005,9.999e-05,2]
[333748522,1722441996175,253.8783998,9.999e-05,2]
[333748523,1722441999219,99304.30911392,0.0002,120]
[333748524,1722441999255,30226.48511781,0.0002,120]
[333748528,1722442173130,-300.0,0.00010098,2]
[333748529,1722442173154,-300.0,0.00010098,2]
[333748530,1722442173178,-906.90429108,0.00010099,2]
[333748588,1722442232649,-300.0,0.00010098,2]
[333748590,1722442232662,-609.30533274,0.00010099,2]
[333748593,1722442232675,-10100.069073,0.00010099,2]
[333748646,1722442238652,-13283.72130318,0.00010099,2]
[333748647,1722442238662,-161.085761,0.00010959,2]
[333748648,1722442238676,-250.0,0.00011057,2]
[333748649,1722442238685,-250.0,0.00011088,2]
[333748651,1722442238694,-420.0,0.00011107,2]
[333748652,1722442238706,-250.0,0.00011118,2]
[333748653,1722442238716,-250.0,0.00011148,2]
[333748654,1722442238725,-250.0,0.00011179,2]
[333748655,1722442238736,-250.0,0.00011209,2]
[333748656,1722442238745,-5310.91571796,0.0001123,2]
[333748657,1722442238765,-419.51443552,0.00011235,2]
[333748659,1722442238776,-191.54798985,0.00011235,2]
[333748660,1722442238786,-250.0,0.00011239,2]
[333748661,1722442238797,-250.0,0.0001127,2]
[333748662,1722442238808,-250.0,0.000113,2]
[333748663,1722442238818,-250.0,0.0001133,2]
[333748664,1722442238828,-250.0,0.00011361,2]
[333748665,1722442238839,-161.085761,0.00011386,2]
[333748666,1722442238849,-250.0,0.00011391,2]
[333748667,1722442238859,-250.0,0.00011421,2]
[333748668,1722442238872,-250.0,0.00011452,2]
[333748669,1722442238882,-250.0,0.00011482,2]
[333748670,1722442238893,-250.0,0.00011512,2]
[333748671,1722442238904,-250.0,0.00011543,2]
[333748672,1722442238914,-250.0,0.00011573,2]
[333748673,1722442238925,-250.0,0.00011603,2]
[333748674,1722442238934,-250.0,0.00011634,2]
[333748675,1722442238945,-161.085761,0.00011814,2]
[333748676,1722442238955,-161.085761,0.00012241,2]
[333748677,1722442238966,-187.1351,0.00012986,2]
[333748678,1722442238979,-176.38542368,0.00012999,4]
[333748679,1722442238989,-3147.92902645,0.00013294,2]
[333748680,1722442238998,-2676.97956582,0.00013588,2]
[333748681,1722442239008,-4556.0974708,0.0001359,2]
[333748682,1722442239018,-16707.94240105,0.000136,2]
[333748683,1722442239031,-9513.00000003,0.000136,2]
[333748684,1722442239043,-390.02274441,0.000136,2]
[333748744,1722442240869,-29156.52607838,0.000136,2]
[333748759,1722442243699,-1524.05156663,0.000136,2]
[333748760,1722442243711,-985.02613639,0.000136,2]
[333748761,1722442243752,-20484.43107311,0.000136,2]
[333748762,1722442243763,-4556.0974708,0.00013688,2]
[333748763,1722442243773,-180.25067527,0.00013698,5]
[333748764,1722442243782,-500.0,0.00013698,2]
[333748765,1722442243793,-500.0,0.00013698,2]
[333748766,1722442243802,-500.0,0.00013698,2]
[333748767,1722442243812,-500.0,0.00013698,2]
[333748768,1722442243822,-503.81808047,0.00013698,2]
[333748769,1722442243833,-500.0,0.00013698,2]
[333748770,1722442243843,-500.0,0.00013698,2]
[333748771,1722442243854,-500.0,0.00013698,2]
[333748772,1722442243864,-500.0,0.00013698,2]
[333748773,1722442243875,-540.94148681,0.00013698,2]
[333748774,1722442243885,-500.0,0.00013698,2]
[333748775,1722442243895,-500.0,0.00013698,2]
[333748776,1722442243906,-500.0,0.00013698,2]
[333748777,1722442243915,-614.15772163,0.00013698,2]
[333748778,1722442243926,-500.0,0.00013698,2]
[333748779,1722442243936,-151.0,0.00013698,2]
[333748780,1722442243946,-151.0,0.00013698,2]
[333748782,1722442243956,-151.0,0.00013698,2]
[333748784,1722442243966,-151.0,0.00013698,2]
[333748786,1722442243976,-500.0,0.00013698,2]
[333748787,1722442243986,-500.0,0.00013698,2]
[333748788,1722442243995,-500.0,0.00013698,2]
[333748789,1722442244005,-500.0,0.00013698,2]
[333748790,1722442244015,-500.0,0.00013698,2]
[333748791,1722442244025,-500.0,0.00013698,2]
[333748792,1722442244035,-500.0,0.00013698,2]
[333748793,1722442244045,-500.0,0.00013698,2]
[333748794,1722442244055,-2074.16,0.00013698,2]
[333748795,1722442244066,-500.0,0.00013698,2]
[333748796,1722442244075,-500.0,0.00013698,2]
[333748797,1722442244085,-500.0,0.00013698,2]
[333748798,1722442244094,-162.12168704,0.00013698,2]
[333748799,1722442244104,-500.0,0.00013698,2]
[333748800,1722442244113,-500.0,0.00013698,2]
[333748801,1722442244127,-500.0,0.00013698,2]
[333748802,1722442244136,-506.5967466,0.00013698,2]
[333748803,1722442244146,-500.0,0.00013698,2]
[333748804,1722442244156,-1211.82,0.00013698,2]
[333748805,1722442244166,-500.0,0.00013698,2]
[333748806,1722442244178,-816.87,0.00013698,2]
[333748807,1722442244188,-500.0,0.00013698,2]
[333748808,1722442244197,-500.0,0.00013698,2]
[333748809,1722442244206,-500.0,0.00013698,2]
[333748810,1722442244216,-500.0,0.00013698,2]
[333748811,1722442244225,-500.0,0.00013698,2]
[333748812,1722442244235,-500.0,0.00013698,2]
[333748813,1722442244244,-151.0,0.00013698,2]
[333748814,1722442244254,-151.0,0.00013698,2]
[333748815,1722442244264,-500.0,0.00013698,2]
[333748816,1722442244274,-151.0,0.00013698,2]
[333748817,1722442244284,-151.0,0.00013698,2]
[333748818,1722442244293,-500.0,0.00013698,2]
[333748819,1722442244303,-500.0,0.00013698,2]
[333748820,1722442244313,-500.0,0.00013698,2]
[333748821,1722442244322,-500.0,0.00013698,2]
[333748822,1722442244331,-500.0,0.00013698,2]
[333748823,1722442244341,-500.0,0.00013698,2]
[333748824,1722442244350,-500.0,0.00013698,2]
[333748825,1722442244360,-5565.08,0.00013698,2]
[333748826,1722442244369,-500.0,0.00013698,2]
[333748827,1722442244378,-500.0,0.00013698,2]
[333748828,1722442244387,-500.0,0.00013698,2]
[333748829,1722442244397,-500.0,0.00013698,2]
[333748830,1722442244406,-500.0,0.00013698,2]
[333748831,1722442244415,-185.314197,0.00013698,2]
[333748832,1722442244425,-500.0,0.00013698,2]
[333748833,1722442244435,-500.0,0.00013698,2]
[333748834,1722442244444,-151.0,0.00013698,2]
[333748835,1722442244454,-151.0,0.00013698,2]
[333748836,1722442244463,-151.0,0.00013698,2]
[333748837,1722442244473,-500.0,0.00013698,2]
[333748838,1722442244482,-151.0,0.00013698,2]
[333748839,1722442244492,-151.0,0.00013698,2]
[333748840,1722442244502,-151.0,0.00013698,2]
[333748841,1722442244511,-151.0,0.00013698,2]
[333748842,1722442244520,-151.0,0.00013698,2]
[333748843,1722442244529,-500.0,0.00013698,2]
[333748844,1722442244539,-500.0,0.00013698,2]
[333748845,1722442244548,-500.0,0.00013698,2]
[333748846,1722442244558,-500.0,0.00013698,2]
[333748847,1722442244567,-500.0,0.00013698,2]
[333748848,1722442244576,-500.0,0.00013698,2]
[333748849,1722442244586,-500.0,0.00013698,2]
[333748850,1722442244596,-151.0,0.00013698,2]
[333748851,1722442244605,-151.0,0.00013698,2]
[333748852,1722442244615,-151.0,0.00013698,2]
[333748853,1722442244624,-151.0,0.00013698,2]
[333748854,1722442244633,-1407.23,0.00013698,2]
[333748855,1722442244643,-500.0,0.00013698,2]
[333748856,1722442244652,-500.0,0.00013698,2]
[333748857,1722442244663,-223.5803,0.00013698,2]
[333748858,1722442244678,-1566.84,0.00013698,2]
[333748859,1722442244688,-500.0,0.00013698,2]
[333748860,1722442244697,-500.0,0.00013698,2]
[333748861,1722442244708,-500.0,0.00013698,2]
[333748862,1722442244718,-449.9237577,0.00013699,2]
[333748863,1722442244728,-151.0,0.00013773,2]
[333748864,1722442244739,-217.03078,0.00013773,2]
[333748865,1722442244749,-2676.97956582,0.00013933,2]
[333748866,1722442244759,-151.0,0.00013962,2]
[333748867,1722442244769,-4556.0974708,0.00013962,2]
[333748868,1722442244778,-500.0,0.00013972,2]
[333748869,1722442244787,-500.0,0.00013972,2]
[333748870,1722442244796,-500.0,0.00013972,2]
[333748871,1722442244806,-500.0,0.00013972,2]
[333748872,1722442244815,-586.64589953,0.00013972,2]
[333748873,1722442244825,-151.0,0.00013972,2]
[333748874,1722442244834,-151.0,0.00013972,2]
[333748875,1722442244845,-151.0,0.00013972,2]
[333748876,1722442244855,-500.0,0.00013972,2]
[333748877,1722442244864,-500.0,0.00013972,2]
[333748878,1722442244874,-500.0,0.00013972,2]
[333748879,1722442244884,-2074.16,0.00013972,2]
[333748880,1722442244894,-500.0,0.00013972,2]
[333748881,1722442244903,-500.0,0.00013972,2]
[333748882,1722442244913,-500.0,0.00013972,2]
[333748883,1722442244923,-500.0,0.00013972,2]
[333748884,1722442244932,-500.0,0.00013972,2]
[333748885,1722442244942,-500.0,0.00013972,2]
[333748886,1722442244952,-500.0,0.00013972,2]
[333748887,1722442244962,-1211.82,0.00013972,2]
[333748888,1722442244972,-500.0,0.00013972,2]
[333748889,1722442244982,-816.87,0.00013972,2]
[333748890,1722442244991,-500.0,0.00013972,2]
[333748891,1722442245001,-500.0,0.00013972,2]
[333748892,1722442245010,-500.0,0.00013972,2]
[333748893,1722442245021,-500.0,0.00013972,2]
[333748894,1722442245029,-500.0,0.00013972,2]
[333748895,1722442245039,-500.0,0.00013972,2]
[333748896,1722442245048,-500.0,0.00013972,2]
[333748897,1722442245058,-500.0,0.00013972,2]
[333748898,1722442245067,-500.0,0.00013972,2]
[333748899,1722442245077,-500.0,0.00013972,2]
[333748900,1722442245087,-5565.08,0.00013972,2]
[333748901,1722442245097,-500.0,0.00013972,2]
[333748902,1722442245108,-500.0,0.00013972,2]
[333748903,1722442245118,-500.0,0.00013972,2]
[333748904,1722442245128,-401.69929313,0.00013972,2]
[333748905,1722442245144,-564.56947294,0.00013972,2]
[333748906,1722442245154,-500.0,0.00013972,2]
[333748907,1722442245163,-643.84323841,0.00013972,2]
[333748908,1722442245173,-500.0,0.00013972,2]
[333748909,1722442245183,-151.0,0.00013972,2]
[333748910,1722442245193,-151.0,0.00013972,2]
[333748911,1722442245203,-500.0,0.00013972,2]
[333748912,1722442245212,-500.0,0.00013972,2]
[333748913,1722442245221,-500.0,0.00013972,2]
[333748914,1722442245231,-500.0,0.00013972,2]
[333748915,1722442245241,-500.0,0.00013972,2]
[333748916,1722442245250,-500.0,0.00013972,2]
[333748917,1722442245260,-151.0,0.00013972,2]
[333748918,1722442245269,-1407.23,0.00013972,2]
[333748919,1722442245278,-500.0,0.00013972,2]
[333748920,1722442245288,-500.0,0.00013972,2]
[333748921,1722442245297,-151.0,0.00013972,2]
[333748922,1722442245307,-151.0,0.00013972,2]
[333748923,1722442245316,-1566.84,0.00013972,2]
[333748924,1722442245326,-500.0,0.00013972,2]
[333748925,1722442245335,-500.0,0.00013972,2]
[333748926,1722442245345,-200.0,0.0001413,2]
[333748927,1722442245354,-4556.0974708,0.00014236,2]
[333748928,1722442245363,-500.0,0.00014246,2]
[333748929,1722442245373,-500.0,0.00014246,2]
[333748930,1722442245382,-500.0,0.00014246,2]
[333748931,1722442245391,-500.0,0.00014246,2]
[333748932,1722442245401,-151.0,0.00014246,2]
[333748933,1722442245411,-262.513118,0.00014246,2]
[333748934,1722442245421,-500.0,0.00014246,2]
[333748935,1722442245432,-500.0,0.00014246,2]
[333748936,1722442245442,-500.0,0.00014246,2]
[333748937,1722442245452,-2074.16,0.00014246,2]
[333748938,1722442245462,-500.0,0.00014246,2]
[333748939,1722442245472,-500.0,0.00014246,2]
[333748940,1722442245482,-500.0,0.00014246,2]
[333748941,1722442245491,-583.26842635,0.00014246,2]
[333748942,1722442245501,-500.0,0.00014246,2]
[333748943,1722442245511,-500.0,0.00014246,2]
[333748944,1722442245521,-500.0,0.00014246,2]
[333748945,1722442245530,-1211.82,0.00014246,2]
[333748946,1722442245539,-816.87,0.00014246,2]
[333748947,1722442245548,-500.0,0.00014246,2]
[333748948,1722442245557,-500.0,0.00014246,2]
[333748949,1722442245566,-500.0,0.00014246,2]
[333748950,1722442245576,-500.0,0.00014246,2]
[333748951,1722442245586,-500.0,0.00014246,2]
[333748952,1722442245597,-500.0,0.00014246,2]
[333748953,1722442245608,-500.0,0.00014246,2]
[333748954,1722442245619,-500.0,0.00014246,2]
[333748955,1722442245628,-500.0,0.00014246,2]
[333748956,1722442245638,-5565.08,0.00014246,2]
[333748957,1722442245648,-500.0,0.00014246,2]
[333748958,1722442245661,-351.38651064,0.00014246,2]
[333748959,1722442245681,-500.0,0.00014246,2]
[333748960,1722442245695,-151.0,0.00014246,2]
[333748961,1722442245704,-151.0,0.00014246,2]
[333748962,1722442245714,-151.0,0.00014246,2]
[333748963,1722442245833,-500.0,0.00014246,2]
[333748964,1722442245860,-500.0,0.00014246,2]
[333748965,1722442245869,-500.0,0.00014246,2]
[333748966,1722442245879,-500.0,0.00014246,2]
[333748967,1722442245890,-500.0,0.00014246,2]
[333748968,1722442245899,-500.0,0.00014246,2]
[333748969,1722442245908,-1407.23,0.00014246,2]
[333748970,1722442245918,-500.0,0.00014246,2]
[333748971,1722442245927,-500.0,0.00014246,2]
[333748972,1722442245937,-151.0,0.00014246,2]
[333748973,1722442245946,-151.0,0.00014246,2]
[333748974,1722442245955,-151.0,0.00014246,2]
[333748975,1722442245965,-1566.84,0.00014246,2]
[333748976,1722442245975,-500.0,0.00014246,2]
[333748977,1722442245984,-500.0,0.00014246,2]
[333748978,1722442245994,-159.002891,0.00014247,2]
[333748979,1722442246003,-712.5,0.00014247,2]
[333748980,1722442246013,-2676.97956582,0.00014278,2]
[333748981,1722442246022,-528.33136029,0.0001452,2]
[333748982,1722442246031,-500.0,0.0001452,2]
[333748983,1722442246040,-500.0,0.0001452,2]
[333748984,1722442246049,-500.0,0.0001452,2]
[333748985,1722442246059,-355.80160365,0.0001452,2]
[333748986,1722442246069,-2074.16,0.0001452,2]
[333748987,1722442246078,-500.0,0.0001452,2]
[333748988,1722442246088,-500.0,0.0001452,2]
[333748989,1722442246097,-626.52970973,0.0001452,2]
[333748990,1722442246107,-500.0,0.0001452,2]
[333748991,1722442246117,-500.0,0.0001452,2]
[333748992,1722442246126,-500.0,0.0001452,2]
[333748993,1722442246136,-1211.82,0.0001452,2]
[333748994,1722442246145,-500.0,0.0001452,2]
[333748995,1722442246155,-816.87,0.0001452,2]
[333748996,1722442246164,-500.0,0.0001452,2]
[333748998,1722442246174,-500.0,0.0001452,2]
[333749000,1722442246183,-500.0,0.0001452,2]
[333749001,1722442246192,-500.0,0.0001452,2]
[333749002,1722442246202,-500.0,0.0001452,2]
[333749004,1722442246211,-500.0,0.0001452,2]
[333749005,1722442246220,-500.0,0.0001452,2]
[333749007,1722442246229,-373.43296733,0.0001452,2]
[333749008,1722442246238,-5565.08,0.0001452,2]
[333749010,1722442246247,-198.40870888,0.0001452,2]
[333749012,1722442246256,-500.0,0.0001452,2]
[333749013,1722442246265,-500.0,0.0001452,2]
[333749015,1722442246274,-500.0,0.0001452,2]
[333749017,1722442246284,-500.0,0.0001452,2]
[333749018,1722442246293,-500.0,0.0001452,2]
[333749020,1722442246302,-500.0,0.0001452,2]
[333749022,1722442246312,-500.0,0.0001452,2]
[333749024,1722442246321,-1407.23,0.0001452,2]
[333749026,1722442246331,-208.02152734,0.0001452,2]
[333749028,1722442246340,-525.19321121,0.0001452,2]
[333749030,1722442246349,-1566.84,0.0001452,2]
[333749032,1722442246359,-500.0,0.0001452,2]
[333749034,1722442246368,-500.0,0.0001452,2]
[333749035,1722442246378,-4556.0974708,0.0001458,2]
[333749037,1722442246387,-2676.97956582,0.00014622,2]
[333749039,1722442246397,-500.0,0.00014689,2]
[333749040,1722442246406,-615.22140056,0.00014689,2]
[333749042,1722442246415,-500.0,0.00014689,2]
[333749044,1722442246424,-500.0,0.00014689,2]
[333749045,1722442246434,-239.13136014,0.00014689,2]
[333749047,1722442246443,-500.0,0.00014689,2]
[333749049,1722442246455,-473.83614436,0.0001469,2]
[333749050,1722442246464,-1091.29802379,0.0001469,2]
[333749052,1722442246473,-335.72666735,0.0001469,2]
[333749054,1722442246483,-1566.27775317,0.0001469,2]
[333749056,1722442246492,-291.20043196,0.0001469,2]
[333749057,1722442246502,-550.0,0.0001469,2]
[333749059,1722442246511,-194.51787475,0.0001469,2]
[333749061,1722442246520,-527.06939469,0.0001469,2]
[333749064,1722442246530,-100000.0,0.0001469,2]
[333749067,1722442246539,-30000.0,0.0001469,2]
[333749070,1722442246549,-81720.10061259,0.00014694,2]
[333749072,1722442246559,-500.0,0.00014794,2]
[333749074,1722442246568,-500.0,0.00014794,2]
[333749077,1722442246578,-295.65882888,0.00014794,2]
[333749079,1722442246587,-2074.16,0.00014794,2]
[333749081,1722442246597,-500.0,0.00014794,2]
[333749084,1722442246607,-500.0,0.00014794,2]
[333749086,1722442246616,-500.0,0.00014794,2]
[333749088,1722442246626,-500.0,0.00014794,2]
[333749090,1722442246635,-500.0,0.00014794,2]
[333749092,1722442246645,-1211.82,0.00014794,2]
[333749094,1722442246654,-500.0,0.00014794,2]
[333749096,1722442246664,-816.87,0.00014794,2]
[333749098,1722442246679,-500.0,0.00014794,2]
[333749100,1722442246689,-450.28501095,0.00014794,2]
[333749102,1722442246698,-332.41066919,0.00014794,2]
[333749104,1722442246710,-500.0,0.00014794,2]
[333749107,1722442246719,-500.0,0.00014794,2]
[333749109,1722442246729,-500.0,0.00014794,2]
[333749111,1722442246738,-500.0,0.00014794,2]
[333749113,1722442246748,-5565.08,0.00014794,2]
[333749115,1722442246758,-500.0,0.00014794,2]
[333749117,1722442246767,-500.0,0.00014794,2]
[333749119,1722442246776,-500.0,0.00014794,2]
[333749121,1722442246786,-500.0,0.00014794,2]
[333749123,1722442246796,-500.0,0.00014794,2]
[333749125,1722442246805,-500.0,0.00014794,2]
[333749127,1722442246815,-500.0,0.00014794,2]
[333749129,1722442246824,-1407.23,0.00014794,2]
[333749131,1722442246835,-1566.84,0.00014794,2]
[333749133,1722442246844,-500.0,0.00014794,2]
[333749135,1722442246853,-500.0,0.00014794,2]
[333749138,1722442246863,-1257.82763832,0.000149,2]
[333749140,1722442246873,-2676.97956582,0.00014967,2]
[333749142,1722442246882,-154.68290005,0.00014999,2]
[333749144,1722442246892,-154.68290005,0.00014999,2]
[333749146,1722442246902,-2191.7021162,0.00015,2]
[333749148,1722442246911,-2847.13724282,0.00015,2]
[333749150,1722442246921,-1000.0,0.00015,15]
[333749152,1722442246932,-4556.0974708,0.00015058,2]
[333749154,1722442246942,-500.0,0.00015068,2]
[333749156,1722442246953,-500.0,0.00015068,2]
[333749158,1722442246963,-2074.16,0.00015068,2]
[333749160,1722442246973,-500.0,0.00015068,2]
[333749162,1722442246982,-500.0,0.00015068,2]
[333749164,1722442246991,-500.0,0.00015068,2]
[333749166,1722442247001,-500.0,0.00015068,2]
[333749168,1722442247011,-500.0,0.00015068,2]
[333749170,1722442247020,-1211.82,0.00015068,2]
[333749172,1722442247029,-500.0,0.00015068,2]
[333749174,1722442247038,-816.87,0.00015068,2]
[333749176,1722442247048,-500.0,0.00015068,2]
[333749177,1722442247057,-576.00270915,0.00015068,2]
[333749178,1722442247067,-500.0,0.00015068,2]
[333749180,1722442247076,-500.0,0.00015068,2]
[333749182,1722442247086,-500.0,0.00015068,2]
[333749184,1722442247095,-5565.08,0.00015068,2]
[333749186,1722442247105,-500.0,0.00015068,2]
[333749188,1722442247114,-500.0,0.00015068,2]
[333749190,1722442247124,-500.0,0.00015068,2]
[333749192,1722442247133,-400.05404223,0.00015068,2]
[333749194,1722442247142,-500.0,0.00015068,2]
[333749196,1722442247151,-500.0,0.00015068,2]
[333749198,1722442247161,-500.0,0.00015068,2]
[333749200,1722442247170,-1407.23,0.00015068,2]
[333749202,1722442247182,-1566.84,0.00015068,2]
[333749204,1722442247192,-242.26570448,0.00015068,2]
[333749206,1722442247202,-500.0,0.00015068,2]
[333749208,1722442247211,-294.1445528,0.00015287,2]
[333749210,1722442247220,-4556.0974708,0.00015332,2]
[333749212,1722442247229,-4556.0974708,0.00015332,2]
[333749214,1722442247238,-500.0,0.00015342,2]
[333749216,1722442247248,-500.0,0.00015342,2]
[333749218,1722442247257,-167.9964129,0.00015342,2]
[333749231,1722442247371,-1906.1635871,0.00015342,2]
[333749232,1722442247380,-433.1088916,0.00015342,2]
[333749233,1722442247624,-2074.12871296,0.0001349,2]
[333749234,1722442247633,-66.8911084,0.00015342,2]
[333749235,1722442247642,-500.0,0.00015342,2]
[333749236,1722442247651,-528.58165475,0.00015342,2]
[333749237,1722442247661,-500.0,0.00015342,2]
[333749238,1722442247675,-317.77154945,0.00015342,2]
[333749249,1722442841272,493.72845005,9.999e-05,2]
[333749253,1722443204136,-166.6666665,0.00011932,2]
[333749254,1722443204158,-53.2161288,0.00012137,2]
[333749301,1722443431819,-300.0,0.00012136,2]
[333749303,1722443431848,-39.5000166,0.00012136,2]
[333749343,1722443437806,-260.4999834,0.00012136,2]
[333749344,1722443437816,-1681.15818535,0.00012137,2]
[333749363,1722443442899,-13703.04909032,0.00012137,2]
[333749364,1722443442908,-24900.0,0.00012138,2]
[333749365,1722443442919,-250.0,0.00012355,2]
[333749366,1722443442928,-250.0,0.00012389,2]
[333749367,1722443442938,-250.0,0.00012423,2]
[333749368,1722443442947,-250.0,0.00012457,2]
[333749369,1722443442957,-250.0,0.00012491,2]
[333749370,1722443442966,-250.0,0.00012525,2]
[333749371,1722443442975,-250.0,0.00012559,2]
[333749372,1722443442986,-250.0,0.00012593,2]
[333749373,1722443442995,-250.0,0.00012627,2]
[333749374,1722443443005,-250.0,0.0001266,2]
[333749375,1722443443014,-250.0,0.00012694,2]
[333749376,1722443443024,-250.0,0.00012728,2]
[333749377,1722443443037,-250.0,0.00012762,2]
[333749378,1722443443047,-250.0,0.00012796,2]
[333749379,1722443443057,-250.0,0.0001283,2]
[333749380,1722443443066,-250.0,0.00012864,2]
[333749381,1722443443077,-250.0,0.00012898,2]
[333749382,1722443443089,-2029.81118886,0.000129,2]
[333749383,1722443443099,-250.0,0.00012932,2]
[333749384,1722443443110,-250.0,0.00012965,2]
[333749385,1722443443121,-159.028779,0.00012986,2]
[333749386,1722443443131,-250.0,0.00012999,2]
[333749387,1722443443141,-420.0,0.0001335,2]
[333749388,1722443443151,-6355.23747597,0.00013686,2]
[333749404,1722443445985,-2228.55213851,0.00013686,2]
[333749406,1722443445997,-500.0,0.00013698,2]
[333749407,1722443446007,-500.0,0.00013698,2]
[333749408,1722443446017,-500.0,0.00013698,2]
[333749409,1722443446028,-1469.19,0.00013698,2]
[333749410,1722443446043,-500.0,0.00013698,2]
[333749411,1722443446053,-500.0,0.00013698,2]
[333749412,1722443446062,-370.25786167,0.00013698,2]
[333749413,1722443446080,-129.74213833,0.00013698,2]
[333749414,1722443446091,-500.0,0.00013698,2]
[333749415,1722443446101,-176.42579615,0.00013698,2]
[333749416,1722443446112,-500.0,0.00013698,2]
[333749417,1722443446123,-4173.81,0.00013698,2]
[333749418,1722443446132,-500.0,0.00013698,2]
[333749419,1722443446141,-598.01835124,0.00013698,2]
[333749420,1722443447856,-14.63164876,0.00013698,2]
[333749421,1722443447866,-500.0,0.00013698,2]
[333749422,1722443447875,-500.0,0.00013698,2]
[333749423,1722443447885,-500.0,0.00013698,2]
[333749424,1722443447894,-500.0,0.00013698,2]
[333749425,1722443447903,-1055.42,0.00013698,2]
[333749426,1722443447912,-500.0,0.00013698,2]
[333749427,1722443447921,-350.41802569,0.00013698,2]
[333749428,1722443447930,-500.0,0.00013698,2]
[333749429,1722443447939,-500.0,0.00013698,2]
[333749430,1722443447948,-500.0,0.00013698,2]
[333749431,1722443447957,-1175.13,0.00013698,2]
[333749432,1722443447967,-500.0,0.00013698,2]
[333749433,1722443447976,-503.81808047,0.00013698,2]
[333749434,1722443447986,-792.37,0.00013698,2]
[333749435,1722443447995,-500.0,0.00013698,2]
[333749436,1722443448004,-194.4938311,0.00013872,2]
[333749437,1722443448013,-500.0,0.00013972,2]
[333749438,1722443448023,-500.0,0.00013972,2]
[333749439,1722443448035,-500.0,0.00013972,2]
[333749440,1722443448044,-1469.19,0.00013972,2]
[333749441,1722443448054,-439.49936169,0.00013972,2]
[333749442,1722443448064,-500.0,0.00013972,2]
[333749443,1722443448073,-500.0,0.00013972,2]
[333749444,1722443448082,-500.0,0.00013972,2]
[333749445,1722443448091,-500.0,0.00013972,2]
[333749446,1722443448101,-4173.81,0.00013972,2]
[333749447,1722443448112,-500.0,0.00013972,2]
[333749448,1722443448121,-612.65,0.00013972,2]
[333749449,1722443448131,-502.73013573,0.00013972,2]
[333749450,1722443448140,-500.0,0.00013972,2]
[333749451,1722443448150,-500.0,0.00013972,2]
[333749452,1722443448160,-500.0,0.00013972,2]
[333749453,1722443448169,-1055.42,0.00013972,2]
[333749454,1722443448178,-500.0,0.00013972,2]
[333749455,1722443448188,-500.0,0.00013972,2]
[333749456,1722443448198,-500.0,0.00013972,2]
[333749457,1722443448207,-309.92162823,0.00013972,2]
[333749458,1722443448217,-1175.13,0.00013972,2]
[333749459,1722443448226,-500.0,0.00013972,2]
[333749460,1722443448235,-200.0,0.00014175,2]
[333749461,1722443448244,-500.0,0.00014246,2]
[333749462,1722443448254,-500.0,0.00014246,2]